[Event "Konyaalti Open-B 2019"]
[Site "Konyaalti"]
[Date "2019.11.18"]
[Round "2.5"]
[White "Kervancioglu, Talu"]
[Black "Cekli, Cem"]
[Result "0-1"]
[ECO "B03"]
[WhiteElo "1501"]
[BlackElo "1812"]
[Annotator "NA RC"]
[PlyCount "72"]
[EventDate "2019.11.20"]
[EventType "swiss"]
[EventCountry "TUR"]
[SourceTitle "playchess.com"]
[Source "ChessBase"]
[SourceQuality "1"]
[TimeControl "5400+30"]

1. e4 {[%emt 0:00:30]} Nf6 {[%emt 0:00:30]} 2. e5 {[%emt 0:00:30]} Nd5 {[%emt 0:00:30]} 3. d4 {[%emt 0:00:30]} d6 {[%emt 0:00:30]} 4. c4 {[%emt 0:00:00]} Nb6 {[%emt 0:00:00]} 5. f4 {[%emt 0:00:00]} dxe5 {[%emt 0:00:00]} 6. fxe5 {[%emt 0:00:30]} Nc6 {[%emt 0:00:00]} 7. Be3 {[%emt 0:00:30]} Bf5 {[%emt 0:00:00]} 8. a3 {[%emt 0:03:30]} e6 {[%emt 0:00:30]} 9. Nc3 {[%emt 0:00:30]} Be7 {[%emt 0:00:30]} 10. Nf3 {[%emt 0:03:30]} f6 {[%emt 0:10:30]} 11. exf6 {[%emt 0:25:30]} Bxf6 {[%emt 0:03:01]} 12. Be2 {[%emt 0:00:30]} O-O {[%emt 0:00:30]} 13. O-O {[%emt 0:17:30]} Qe7 {[%emt 0:00:00]} 14. Qe1 {[%emt 0:10:30]} Rad8 {[%emt 0:02:29]} 15. Qf2 {[%emt 0:01:30]} Rfe8 {[%emt 0:08:30]} 16. Rad1 {[%emt 0:08:30]} Bc2 {[%emt 0:01:30]} 17. Rc1 {[%emt 0:04:30]} Bg6 {[%emt 0:00:30]} 18. b4 {[%emt 0:00:51]} Kh8 {[%emt 0:07:30]} 19. c5 {[%emt 0:04:25]} Nd5 {[%emt 0:00:30]} 20. Nxd5 {[%emt 0:03:03]} exd5 {[%emt 0:00:30]} 21. Rc3 {[%emt 0:06:27]} Nxd4 {[%emt 0:07:30]} 22. Nxd4 {[%emt 0:04:04]} Bxd4 {[%emt 0:00:00]} 23. Bxd4 {[%emt 0:00:00]} Qxe2 {[%emt 0:00:00]} 24. Qf4 {[%emt 0:00:43]} Qe4 {[%emt 0:01:30]} 25. Qf2 {[%emt 0:01:04]} Kg8 {[%emt 0:07:30]} 26. Re3 {[%emt 0:01:47]} Qc2 {[%emt 0:03:30]} 27. Qh4 {[%emt 0:00:48]} Qd2 {[%emt 0:07:30]} 28. Qf4 {[%emt 0:01:22]} Rxe3 {[%emt 0:17:30]} 29. Bxe3 {[%emt 0:00:04]} Qd3 {[%emt 0:01:30]} 30. Qg5 {[%emt 0:01:14]} Re8 {[%emt 0:00:30]} 31. Bf4 {[%emt 0:00:36]} c6 {[%emt 0:01:07]} 32. Qg4 {[%emt 0:00:15]} Qf5 {[%emt 0:04:11]} 33. Qg3 {[%emt 0:00:34]} Qe4 {[%emt 0:00:28]} 34. Qf2 {[%emt 0:00:33]} Qe2 {[%emt 0:02:10]} 35. Qd4 {[%emt 0:00:05]} Bd3 {[%emt 0:00:43]} 36. Qf2 {[%emt 0:01:04]} Qxf1+ {[%emt 0:02:01]} 0-1

[Event "Konyaalti Open-B 2019"]
[Site "Konyaalti"]
[Date "2019.11.18"]
[Round "3.1"]
[White "Ismayilov, Firuz"]
[Black "Yildiz, Tunahan"]
[Result "1-0"]
[ECO "D02"]
[WhiteElo "1618"]
[BlackElo "1752"]
[Annotator "NA RC"]
[PlyCount "127"]
[EventDate "2019.11.20"]
[EventType "swiss"]
[EventCountry "TUR"]
[SourceTitle "playchess.com"]
[Source "ChessBase"]
[SourceQuality "1"]
[TimeControl "5400+30"]

1. Nf3 {[%emt 0:00:00]} d5 {[%emt 0:00:00]} 2. d4 {[%emt 0:00:30]} Nf6 {[%emt 0:00:30]} 3. Bf4 {[%emt 0:00:30]} g6 {[%emt 0:00:30]} 4. e3 {[%emt 0:00:30]} Bg7 {[%emt 0:00:30]} 5. h3 {[%emt 0:00:30]} O-O {[%emt 0:00:30]} 6. Bd3 {[%emt 0:00:30]} c5 {[%emt 0:00:30]} 7. c3 {[%emt 0:00:30]} Nc6 {[%emt 0:00:30]} 8. Nbd2 {[%emt 0:00:30]} Nd7 {[%emt 0:00:30]} 9. O-O {[%emt 0:00:30]} e5 {[%emt 0:00:30]} 10. dxe5 {[%emt 0:00:30]} Ndxe5 {[%emt 0:00:30]} 11. Nxe5 {[%emt 0:00:30]} Nxe5 {[%emt 0:00:30]} 12. Be2 {[%emt 0:00:30]} Be6 {[%emt 0:00:30]} 13. Nf3 {[%emt 0:00:30]} Nc6 {[%emt 0:00:30]} 14. Qb3 {[%emt 0:00:30]} Qe7 {[%emt 0:08:20]} 15. Ng5 {[%emt 0:03:00]} Rad8 {[%emt 0:03:02]} 16. Nxe6 {[%emt 0:00:30]} fxe6 {[%emt 0:00:30]} 17. Rad1 {[%emt 0:05:59]} Kh8 {[%emt 0:03:00]} 18. Bg3 {[%emt 0:02:59]} Bf6 {[%emt 0:18:03]} 19. Qa4 {[%emt 0:06:02]} Qd7 {[%emt 0:12:02]} 20. Bg4 {[%emt 0:09:03]} h5 {[%emt 0:02:58]} 21. Be2 {[%emt 0:03:01]} Nd4 {[%emt 0:00:30]} 22. Rxd4 {[%emt 0:03:02]} cxd4 {[%emt 0:00:30]} 23. Bb5 {[%emt 0:00:30]} Qg7 {[%emt 0:02:57]} 24. exd4 {[%emt 0:03:00]} e5 {[%emt 0:03:02]} 25. dxe5 {[%emt 0:02:59]} Bxe5 {[%emt 0:00:30]} 26. Bxe5 {[%emt 0:09:03]} Qxe5 {[%emt 0:00:30]} 27. Bd3 {[%emt 0:00:30]} Rf6 {[%emt 0:06:02]} 28. Qxa7 {[%emt 0:06:02]} b6 {[%emt 0:02:56]} 29. Bb1 {[%emt 0:03:03]} Rdf8 {[%emt 0:00:30]} 30. f3 {[%emt 0:02:57]} Qe3+ {[%emt 0:00:30]} 31. Kh1 {[%emt 0:06:01]} Qe2 {[%emt 0:03:02]} 32. Rg1 {[%emt 0:00:30]} Qd2 {[%emt 0:06:01]} 33. Qe7 {[%emt 0:02:59]} R8f7 {[%emt 0:00:30]} 34. Qe5 {[%emt 0:03:00]} Kg7 {[%emt 0:00:30]} 35. a4 {[%emt 0:00:30]} Qxb2 {[%emt 0:03:03]} 36. Qxd5 {[%emt 0:00:30]} Qxc3 {[%emt 0:02:58]} 37. Ba2 {[%emt 0:00:30]} Rf8 {[%emt 0:03:03]} 38. Bb1 {[%emt 0:03:02]} Qa5 {[%emt 0:00:30]} 39. Qe4 {[%emt 0:00:30]} Qa8 {[%emt 0:02:57]} 40. Qb4 {[%emt 0:00:30]} Qa5 {[%emt 0:00:30]} 41. Qe4 {[%emt 0:03:03]} Qg5 {[%emt 0:00:30]} 42. Qd4 {[%emt 0:00:30]} Kh6 {[%emt 0:00:30]} 43. Be4 {[%emt 0:02:59]} Qc5 {[%emt 0:00:30]} 44. Qd2+ {[%emt 0:00:30]} Qg5 {[%emt 0:00:30]} 45. Qd4 {[%emt 0:00:30]} h4 {[%emt 0:02:58]} 46. Qd3 {[%emt 0:00:30]} Qa5 {[%emt 0:00:30]} 47. Qe3+ {[%emt 0:00:30]} Kg7 {[%emt 0:03:03]} 48. Qd4 {[%emt 0:00:30]} Qc5 {[%emt 0:00:30]} 49. Qd7+ {[%emt 0:00:30]} R8f7 {[%emt 0:00:30]} 50. Qd2 {[%emt 0:02:58]} Ra7 {[%emt 0:00:30]} 51. Qd8 {[%emt 0:00:30]} Qe7 {[%emt 0:00:30]} 52. Qd4 {[%emt 0:00:30]} Qd7 {[%emt 0:03:04]} 53. Qc4 {[%emt 0:00:30]} Rxa4 {[%emt 0:00:30]} 54. Qb3 {[%emt 0:02:58]} b5 {[%emt 0:00:30]} 55. Rb1 {[%emt 0:02:58]} b4 {[%emt 0:00:30]} 56. Bc2 {[%emt 0:00:30]} Rfa6 {[%emt 0:00:30]} 57. Qb2+ {[%emt 0:00:30]} Kh7 {[%emt 0:00:30]} 58. Bxa4 {[%emt 0:00:30]} Rxa4 {[%emt 0:00:30]} 59. Qb3 {[%emt 0:01:55]} Qa7 {[%emt 0:00:30]} 60. Qc4 {[%emt 0:00:32]} Qe7 {[%emt 0:00:59]} 61. Qb5 {[%emt 0:00:42]} Ra2 {[%emt 0:00:42]} 62. Qxb4 {[%emt 0:00:06]} Qe2 {[%emt 0:00:32]} 63. Qxh4+ {[%emt 0:00:16]} Kg7 {[%emt 0:00:30]} 64. Rb7+ {[%emt 0:00:11]} 1-0

[Event "Konyaalti Open-B 2019"]
[Site "Konyaalti"]
[Date "2019.11.18"]
[Round "3.2"]
[White "Uysal, Ilyas"]
[Black "Egeli, Sercan Veli"]
[Result "0-1"]
[ECO "B01"]
[WhiteElo "1767"]
[BlackElo "1478"]
[Annotator "NA RC"]
[PlyCount "162"]
[EventDate "2019.11.20"]
[EventType "swiss"]
[EventCountry "TUR"]
[SourceTitle "playchess.com"]
[Source "ChessBase"]
[SourceQuality "1"]
[TimeControl "5400+30"]

1. e4 {[%emt 0:00:00]} d5 {[%emt 0:00:00]} 2. exd5 {[%emt 0:00:30]} Nf6 {[%emt 0:00:30]} 3. d4 {[%emt 0:00:30]} Bg4 {[%emt 0:00:30]} 4. f3 {[%emt 0:00:30]} Bf5 {[%emt 0:00:30]} 5. Bb5+ {[%emt 0:00:30]} Bd7 {[%emt 0:00:30]} 6. Bxd7+ {[%emt 0:00:30]} Qxd7 {[%emt 0:00:30]} 7. c4 {[%emt 0:00:30]} e6 {[%emt 0:00:30]} 8. dxe6 {[%emt 0:00:30]} fxe6 {[%emt 0:00:30]} 9. Ne2 {[%emt 0:00:30]} Nc6 {[%emt 0:00:30]} 10. O-O {[%emt 0:00:30]} O-O-O {[%emt 0:00:30]} 11. Be3 {[%emt 0:00:30]} Bc5 {[%emt 0:00:30]} 12. Nbc3 {[%emt 0:00:30]} Nxd4 {[%emt 0:00:30]} 13. Kh1 {[%emt 0:00:30]} Nb3 {[%emt 0:08:20]} 14. Qxb3 {[%emt 0:15:01]} Bxe3 {[%emt 0:00:30]} 15. Rad1 {[%emt 0:02:59]} Qc6 {[%emt 0:09:01]} 16. Nd5 {[%emt 0:03:03]} exd5 {[%emt 0:12:01]} 17. Qxe3 {[%emt 0:03:02]} Rhe8 {[%emt 0:00:30]} 18. Qf2 {[%emt 0:09:00]} Qxc4 {[%emt 0:03:03]} 19. Nd4 {[%emt 0:00:30]} Rd7 {[%emt 0:17:58]} 20. Rc1 {[%emt 0:03:01]} Qd3 {[%emt 0:03:02]} 21. Rc3 {[%emt 0:00:30]} Qa6 {[%emt 0:02:59]} 22. Rfc1 {[%emt 0:06:00]} Rde7 {[%emt 0:18:02]} 23. b4 {[%emt 0:03:03]} Qb6 {[%emt 0:00:30]} 24. h3 {[%emt 0:00:30]} Kd8 {[%emt 0:02:58]} 25. b5 {[%emt 0:12:01]} g6 {[%emt 0:03:03]} 26. Rc5 {[%emt 0:00:30]} Qd6 {[%emt 0:02:58]} 27. a4 {[%emt 0:03:01]} Qf4 {[%emt 0:00:30]} 28. R5c2 {[%emt 0:03:03]} Nh5 {[%emt 0:00:30]} 29. g4 {[%emt 0:06:00]} Ng3+ {[%emt 0:00:30]} 30. Kg2 {[%emt 0:00:30]} Ne2 {[%emt 0:00:30]} 31. Nxe2 {[%emt 0:05:59]} Rxe2 {[%emt 0:00:30]} 32. Rxe2 {[%emt 0:00:30]} Rxe2 {[%emt 0:00:30]} 33. Qxe2 {[%emt 0:00:30]} Qxc1 {[%emt 0:00:30]} 34. Qf2 {[%emt 0:03:04]} Qf4 {[%emt 0:00:30]} 35. Qh4+ {[%emt 0:02:59]} Kc8 {[%emt 0:00:30]} 36. Qe7 {[%emt 0:00:30]} Qd6 {[%emt 0:00:30]} 37. Qe8+ {[%emt 0:00:30]} Qd8 {[%emt 0:02:57]} 38. Qe6+ {[%emt 0:00:30]} Kb8 {[%emt 0:00:30]} 39. f4 {[%emt 0:00:30]} d4 {[%emt 0:00:30]} 40. Kf2 {[%emt 0:00:30]} a6 {[%emt 0:03:03]} 41. f5 {[%emt 0:00:30]} gxf5 {[%emt 0:00:30]} 42. gxf5 {[%emt 0:00:30]} Qh4+ {[%emt 0:00:30]} 43. Ke2 {[%emt 0:00:30]} Qxh3 {[%emt 0:00:30]} 44. Qe8+ {[%emt 0:02:58]} Ka7 {[%emt 0:00:30]} 45. Qe4 {[%emt 0:00:30]} Qc3 {[%emt 0:00:30]} 46. Qd3 {[%emt 0:00:30]} Qc5 {[%emt 0:00:30]} 47. Kf3 {[%emt 0:00:30]} Qe5 {[%emt 0:03:04]} 48. Qe4 {[%emt 0:00:30]} Qc5 {[%emt 0:00:30]} 49. f6 {[%emt 0:00:30]} Qc3+ {[%emt 0:00:30]} 50. Kf4 {[%emt 0:00:30]} d3 {[%emt 0:00:30]} 51. Qe3+ {[%emt 0:02:58]} b6 {[%emt 0:00:30]} 52. Kf5 {[%emt 0:00:30]} Qc2 {[%emt 0:00:30]} 53. Qe4 {[%emt 0:00:30]} Qf2+ {[%emt 0:00:30]} 54. Ke5 {[%emt 0:02:58]} d2 {[%emt 0:00:30]} 55. bxa6 {[%emt 0:00:30]} Qc5+ {[%emt 0:00:30]} 56. Kf4 {[%emt 0:00:30]} Qd6+ {[%emt 0:00:30]} 57. Kg5 {[%emt 0:00:30]} c6 {[%emt 0:03:04]} 58. Qe7+ {[%emt 0:00:27]} Qxe7 {[%emt 0:00:30]} 59. fxe7 {[%emt 0:00:05]} d1=Q {[%emt 0:00:30]} 60. e8=Q {[%emt 0:00:11]} Qxa4 {[%emt 0:01:09]} 61. Qc8 {[%emt 0:01:09]} Qxa6 {[%emt 0:00:30]} 62. Qxc6 {[%emt 0:00:33]} Qd3 {[%emt 0:01:15]} 63. Qa4+ {[%emt 0:00:26]} Kb7 {[%emt 0:00:11]} 64. Qb4 {[%emt 0:00:30]} b5 {[%emt 0:00:05]} 65. Kf6 {[%emt 0:00:29]} Qc4 {[%emt 0:01:39]} 66. Qe7+ {[%emt 0:00:21]} Kb6 {[%emt 0:00:42]} 67. Qxh7 {[%emt 0:00:11]} b4 {[%emt 0:00:11]} 68. Qh2 {[%emt 0:00:32]} b3 {[%emt 0:00:26]} 69. Qb8+ {[%emt 0:00:30]} Ka5 {[%emt 0:00:21]} 70. Qd8+ {[%emt 0:00:52]} Ka4 {[%emt 0:00:42]} 71. Qd7+ {[%emt 0:00:30]} Ka3 {[%emt 0:00:32]} 72. Qa7+ {[%emt 0:00:58]} Kb2 {[%emt 0:01:13]} 73. Kf5 {[%emt 0:00:30]} Qd3+ {[%emt 0:00:16]} 74. Kf4 {[%emt 0:01:08]} Kc2 {[%emt 0:00:16]} 75. Qc5+ {[%emt 0:02:42]} Qc3 {[%emt 0:00:30]} 76. Qf5+ {[%emt 0:00:30]} Kc1 {[%emt 0:00:30]} 77. Qg6 {[%emt 0:00:30]} Qd2+ {[%emt 0:00:42]} 78. Ke5 {[%emt 0:00:21]} Qe3+ {[%emt 0:00:26]} 79. Kd5 {[%emt 0:00:21]} b2 80. Qc6+ {[%emt 0:00:30]} Kd2 81. Qb7 {[%emt 0:00:11]} Qf3+ 0-1

[Event "Konyaalti Open-B 2019"]
[Site "Konyaalti"]
[Date "2019.11.18"]
[Round "3.3"]
[White "Yaman, Omer Yigit"]
[Black "Karahan, Anil"]
[Result "0-1"]
[ECO "A45"]
[WhiteElo "1529"]
[BlackElo "1767"]
[Annotator "NA"]
[PlyCount "92"]
[EventDate "2019.11.20"]
[EventType "swiss"]
[EventCountry "TUR"]
[SourceTitle "playchess.com"]
[Source "ChessBase"]
[SourceQuality "1"]
[TimeControl "5400+30"]

1. d4 {[%emt 0:00:00]} Nf6 {[%emt 0:00:00]} 2. Bg5 {[%emt 0:00:30]} e6 {[%emt 0:00:30]} 3. e3 {[%emt 0:00:30]} Be7 {[%emt 0:00:30]} 4. Bxf6 {[%emt 0:00:30]} Bxf6 {[%emt 0:00:30]} 5. Bd3 {[%emt 0:00:30]} c5 {[%emt 0:00:30]} 6. c3 {[%emt 0:00:30]} d6 {[%emt 0:00:30]} 7. Nd2 {[%emt 0:00:30]} Nc6 {[%emt 0:00:30]} 8. Ne2 {[%emt 0:00:30]} Bd7 {[%emt 0:00:30]} 9. Ne4 {[%emt 0:00:30]} Be7 {[%emt 0:00:30]} 10. Nf4 {[%emt 0:00:30]} cxd4 {[%emt 0:00:30]} 11. cxd4 {[%emt 0:02:20]} Nb4 {[%emt 0:12:02]} 12. O-O {[%emt 0:02:57]} Nxd3 {[%emt 0:00:30]} 13. Nxd3 {[%emt 0:00:30]} O-O {[%emt 0:03:02]} 14. f4 {[%emt 0:06:00]} Qb6 {[%emt 0:00:30]} 15. Rc1 {[%emt 0:03:00]} Rac8 {[%emt 0:00:30]} 16. Rxc8 {[%emt 0:03:00]} Rxc8 {[%emt 0:00:30]} 17. Ng3 {[%emt 0:06:03]} Bb5 {[%emt 0:05:59]} 18. Rf2 {[%emt 0:09:05]} a5 {[%emt 0:15:00]} 19. f5 {[%emt 0:03:02]} e5 {[%emt 0:11:58]} 20. f6 {[%emt 0:00:30]} Bxf6 {[%emt 0:00:30]} 21. Rxf6 {[%emt 0:03:01]} Bxd3 {[%emt 0:00:30]} 22. Rf2 {[%emt 0:00:30]} Bg6 {[%emt 0:06:01]} 23. h4 {[%emt 0:03:02]} Qc7 {[%emt 0:06:01]} 24. e4 {[%emt 0:06:01]} h6 {[%emt 0:00:30]} 25. h5 {[%emt 0:00:30]} Bh7 {[%emt 0:00:30]} 26. dxe5 {[%emt 0:02:59]} dxe5 {[%emt 0:00:30]} 27. Qb3 {[%emt 0:03:03]} Qe7 {[%emt 0:02:56]} 28. Rc2 {[%emt 0:06:00]} Rd8 {[%emt 0:00:30]} 29. Rc1 {[%emt 0:00:30]} Kh8 {[%emt 0:03:03]} 30. Qb6 {[%emt 0:02:58]} Qg5 {[%emt 0:00:30]} 31. Rf1 {[%emt 0:00:30]} Rd3 {[%emt 0:03:03]} 32. Nf5 {[%emt 0:02:58]} Rd2 {[%emt 0:03:03]} 33. Ne3 {[%emt 0:05:59]} Bxe4 {[%emt 0:00:30]} 34. Rf2 {[%emt 0:00:30]} Rxf2 {[%emt 0:00:30]} 35. Kxf2 {[%emt 0:00:30]} Qf4+ {[%emt 0:00:30]} 36. Kg1 {[%emt 0:00:30]} a4 {[%emt 0:03:03]} 37. b3 {[%emt 0:00:30]} axb3 {[%emt 0:00:30]} 38. axb3 {[%emt 0:00:30]} Bc6 {[%emt 0:00:30]} 39. Qd8+ {[%emt 0:02:58]} Kh7 {[%emt 0:00:30]} 40. Qd2 {[%emt 0:00:30]} Qe4 {[%emt 0:00:30]} 41. b4 {[%emt 0:00:30]} f5 {[%emt 0:00:30]} 42. b5 {[%emt 0:03:03]} Bxb5 {[%emt 0:00:30]} 43. Kh2 {[%emt 0:00:30]} Bc6 {[%emt 0:00:30]} 44. Kg1 {[%emt 0:00:30]} b5 {[%emt 0:00:30]} 45. Kh2 {[%emt 0:00:30]} b4 {[%emt 0:03:01]} 46. Nf1 {[%emt 0:00:30]} f4 {[%emt 0:00:30]} 0-1

[Event "Konyaalti Open-B 2019"]
[Site "Konyaalti"]
[Date "2019.11.18"]
[Round "3.4"]
[White "Cekli, Cem"]
[Black "Ipek, Egehan"]
[Result "1/2-1/2"]
[ECO "D10"]
[WhiteElo "1812"]
[BlackElo "1590"]
[Annotator "NA RC"]
[PlyCount "48"]
[EventDate "2019.11.20"]
[EventType "swiss"]
[EventCountry "TUR"]
[SourceTitle "playchess.com"]
[Source "ChessBase"]
[SourceQuality "1"]
[TimeControl "5400+30"]

1. d4 {[%emt 0:00:00]} d5 {[%emt 0:00:00]} 2. c4 {[%emt 0:00:30]} c6 {[%emt 0:00:30]} 3. Nc3 {[%emt 0:00:30]} Nf6 {[%emt 0:00:30]} 4. cxd5 {[%emt 0:00:30]} cxd5 {[%emt 0:00:30]} 5. Bf4 {[%emt 0:00:30]} e6 {[%emt 0:00:30]} 6. e3 {[%emt 0:00:30]} Nc6 {[%emt 0:00:30]} 7. Bd3 {[%emt 0:00:30]} Bd6 {[%emt 0:00:30]} 8. Nge2 {[%emt 0:00:30]} O-O {[%emt 0:00:30]} 9. O-O {[%emt 0:00:30]} Nb4 {[%emt 0:00:30]} 10. Bb1 {[%emt 0:00:30]} a6 {[%emt 0:00:30]} 11. a3 {[%emt 0:00:30]} Nc6 {[%emt 0:00:30]} 12. Qd3 {[%emt 0:00:30]} Ne7 {[%emt 0:00:30]} 13. Bxd6 {[%emt 0:00:30]} Qxd6 {[%emt 0:00:30]} 14. f4 {[%emt 0:00:30]} Nf5 {[%emt 0:00:30]} 15. h3 {[%emt 0:00:30]} h5 {[%emt 0:00:30]} 16. Kf2 {[%emt 0:00:30]} Qe7 {[%emt 0:05:20]} 17. Rg1 {[%emt 0:06:00]} Nd6 {[%emt 0:00:30]} 18. Qd1 {[%emt 0:05:59]} Bd7 {[%emt 0:06:02]} 19. g4 {[%emt 0:03:00]} g6 {[%emt 0:12:03]} 20. Ng3 {[%emt 0:02:58]} hxg4 {[%emt 0:06:02]} 21. hxg4 {[%emt 0:03:01]} e5 {[%emt 0:06:00]} 22. f5 {[%emt 0:09:05]} exd4 {[%emt 0:06:01]} 23. Qxd4 {[%emt 0:00:30]} Rae8 {[%emt 0:00:30]} 24. Nh5 {[%emt 0:05:58]} gxh5 {[%emt 0:03:01]} 1/2-1/2

[Event "Konyaalti Open-B 2019"]
[Site "Konyaalti"]
[Date "2019.11.18"]
[Round "3.5"]
[White "Fidanci, Kutay"]
[Black "Ceylan, Enes Arda"]
[Result "1-0"]
[ECO "D11"]
[WhiteElo "1601"]
[BlackElo "1399"]
[Annotator "NA RC"]
[PlyCount "95"]
[EventDate "2019.11.20"]
[EventType "swiss"]
[EventCountry "TUR"]
[SourceTitle "playchess.com"]
[Source "ChessBase"]
[SourceQuality "1"]
[TimeControl "5400+30"]

1. d4 {[%emt 0:00:00]} d5 {[%emt 0:00:00]} 2. c4 {[%emt 0:00:30]} dxc4 {[%emt 0:00:30]} 3. Nf3 {[%emt 0:00:30]} Nf6 {[%emt 0:00:30]} 4. g3 {[%emt 0:00:30]} c6 {[%emt 0:00:30]} 5. a4 {[%emt 0:00:30]} Be6 {[%emt 0:00:30]} 6. Nc3 {[%emt 0:00:30]} Nd5 {[%emt 0:00:30]} 7. Ng5 {[%emt 0:00:30]} Bg4 {[%emt 0:00:30]} 8. Bg2 {[%emt 0:00:30]} e6 {[%emt 0:00:30]} 9. O-O {[%emt 0:02:20]} Nd7 {[%emt 0:09:01]} 10. f3 {[%emt 0:05:59]} Bh5 {[%emt 0:03:01]} 11. e4 {[%emt 0:00:30]} Nxc3 {[%emt 0:09:00]} 12. bxc3 {[%emt 0:00:30]} b5 {[%emt 0:00:30]} 13. g4 {[%emt 0:06:00]} Bg6 {[%emt 0:12:03]} 14. f4 {[%emt 0:15:03]} h6 {[%emt 0:03:02]} 15. f5 {[%emt 0:06:01]} hxg5 {[%emt 0:00:30]} 16. fxg6 {[%emt 0:02:57]} f6 {[%emt 0:00:30]} 17. axb5 {[%emt 0:03:01]} cxb5 {[%emt 0:00:30]} 18. e5 {[%emt 0:03:02]} Rb8 {[%emt 0:00:30]} 19. Qf3 {[%emt 0:02:58]} Rh6 {[%emt 0:06:03]} 20. Qe4 {[%emt 0:02:59]} Qb6 {[%emt 0:06:00]} 21. Kh1 {[%emt 0:03:03]} a5 {[%emt 0:00:30]} 22. Re1 {[%emt 0:09:00]} Be7 {[%emt 0:05:58]} 23. exf6 {[%emt 0:00:30]} Nxf6 {[%emt 0:06:01]} 24. Qxe6 {[%emt 0:03:03]} Qxe6 {[%emt 0:00:30]} 25. Rxe6 {[%emt 0:00:30]} Kd7 {[%emt 0:02:58]} 26. Ra6 {[%emt 0:00:30]} Nxg4 {[%emt 0:03:03]} 27. Ra7+ {[%emt 0:00:30]} Kd8 {[%emt 0:08:59]} 28. h3 {[%emt 0:03:01]} Nf2+ {[%emt 0:00:30]} 29. Kg1 {[%emt 0:00:30]} Nxh3+ {[%emt 0:00:30]} 30. Kf1 {[%emt 0:00:30]} Nf4 {[%emt 0:03:03]} 31. Bxf4 {[%emt 0:00:30]} gxf4 {[%emt 0:00:30]} 32. Re1 {[%emt 0:02:58]} Bf6 {[%emt 0:00:30]} 33. Bc6 {[%emt 0:03:03]} Rh8 {[%emt 0:00:30]} 34. Re6 {[%emt 0:00:30]} b4 {[%emt 0:03:01]} 35. Rd6+ {[%emt 0:00:30]} Kc8 {[%emt 0:00:30]} 36. Bd7+ {[%emt 0:02:57]} Kd8 {[%emt 0:00:30]} 37. Bc6+ {[%emt 0:00:30]} Kc8 {[%emt 0:00:30]} 38. Bd5 {[%emt 0:03:04]} Re8 {[%emt 0:00:30]} 39. Bf3 {[%emt 0:00:30]} Rb5 {[%emt 0:02:59]} 40. Ra8+ {[%emt 0:00:30]} Rb8 {[%emt 0:02:58]} 41. Rc6+ {[%emt 0:00:30]} Kd8 {[%emt 0:03:03]} 42. Rxb8+ {[%emt 0:00:30]} Ke7 {[%emt 0:00:30]} 43. Rxe8+ {[%emt 0:02:57]} Kxe8 {[%emt 0:00:30]} 44. cxb4 {[%emt 0:00:30]} axb4 {[%emt 0:00:30]} 45. Rxc4 {[%emt 0:03:04]} b3 {[%emt 0:00:30]} 46. Rb4 {[%emt 0:00:30]} b2 {[%emt 0:00:30]} 47. Rxb2 {[%emt 0:00:30]} Bxd4 {[%emt 0:00:30]} 48. Rb7 {[%emt 0:00:30]} 1-0

[Event "Konyaalti Open-B 2019"]
[Site "Konyaalti"]
[Date "2019.11.19"]
[Round "4.1"]
[White "Karahan, Anil"]
[Black "Ismayilov, Firuz"]
[Result "1-0"]
[ECO "E62"]
[WhiteElo "1767"]
[BlackElo "1618"]
[Annotator "NA RC"]
[PlyCount "90"]
[EventDate "2019.11.20"]
[EventType "swiss"]
[EventCountry "TUR"]
[SourceTitle "playchess.com"]
[Source "ChessBase"]
[SourceQuality "1"]
[TimeControl "5400+30"]

1. d4 {[%emt 0:00:30]} g6 {[%emt 0:00:30]} 2. Nf3 {[%emt 0:00:30]} Bg7 {[%emt 0:00:00]} 3. g3 {[%emt 0:00:30]} d6 {[%emt 0:01:00]} 4. Bg2 {[%emt 0:00:30]} Nc6 {[%emt 0:00:30]} 5. O-O {[%emt 0:00:30]} Nf6 {[%emt 0:01:30]} 6. c4 {[%emt 0:05:30]} O-O {[%emt 0:00:30]} 7. Nc3 {[%emt 0:00:00]} Bg4 {[%emt 0:00:30]} 8. Qd3 {[%emt 0:19:00]} Bxf3 {[%emt 0:08:30]} 9. Bxf3 {[%emt 0:01:30]} e5 {[%emt 0:00:30]} 10. d5 {[%emt 0:16:30]} Nd4 {[%emt 0:12:30]} 11. Bg2 {[%emt 0:00:00]} Nf5 {[%emt 0:09:30]} 12. e4 {[%emt 0:05:00]} Nd4 {[%emt 0:03:30]} 13. Be3 {[%emt 0:05:30]} Nd7 {[%emt 0:03:30]} 14. b4 {[%emt 0:04:30]} f5 {[%emt 0:02:30]} 15. Nb5 {[%emt 0:09:30]} fxe4 {[%emt 0:02:30]} 16. Bxe4 {[%emt 0:00:30]} Nxb5 {[%emt 0:02:30]} 17. cxb5 {[%emt 0:00:30]} Nf6 {[%emt 0:00:30]} 18. Rac1 {[%emt 0:01:30]} Qd7 {[%emt 0:02:30]} 19. a4 {[%emt 0:01:30]} Rf7 {[%emt 0:06:30]} 20. Rc4 {[%emt 0:03:30]} a6 {[%emt 0:16:30]} 21. bxa6 {[%emt 0:00:30]} bxa6 {[%emt 0:00:30]} 22. Rc6 {[%emt 0:03:04]} Qh3 {[%emt 0:04:30]} 23. Bg2 {[%emt 0:00:00]} Qg4 {[%emt 0:00:30]} 24. Rb1 {[%emt 0:01:57]} a5 {[%emt 0:01:44]} 25. bxa5 {[%emt 0:00:00]} Qxa4 {[%emt 0:00:34]} 26. a6 {[%emt 0:00:00]} e4 {[%emt 0:00:46]} 27. Qb5 {[%emt 0:05:37]} Qa2 {[%emt 0:02:00]} 28. Bh3 {[%emt 0:02:19]} Kh8 {[%emt 0:03:59]} 29. Be6 {[%emt 0:00:14]} Rff8 {[%emt 0:03:01]} 30. Qb7 {[%emt 0:05:07]} Ne8 {[%emt 0:03:47]} 31. Rbc1 {[%emt 0:00:31]} Bh6 {[%emt 0:01:50]} 32. Bd4+ {[%emt 0:03:24]} Bg7 {[%emt 0:01:22]} 33. Rxc7 {[%emt 0:02:14]} e3 {[%emt 0:02:01]} 34. R1c2 {[%emt 0:03:05]} exf2+ {[%emt 0:00:09]} 35. Rxf2 {[%emt 0:01:04]} Qxf2+ {[%emt 0:02:24]} 36. Bxf2 {[%emt 0:00:05]} Nxc7 {[%emt 0:00:13]} 37. Qxc7 {[%emt 0:00:07]} Rxa6 {[%emt 0:00:32]} 38. Be3 {[%emt 0:00:39]} Ra3 {[%emt 0:00:42]} 39. Bf4 {[%emt 0:00:24]} Ra2 {[%emt 0:00:43]} 40. h4 {[%emt 0:02:00]} Rb2 {[%emt 0:01:39]} 41. Bc8 {[%emt 0:00:32]} h6 {[%emt 0:00:29]} 42. Ba6 {[%emt 0:00:33]} Re8 {[%emt 0:00:55]} 43. Qc1 {[%emt 0:00:26]} Ra2 {[%emt 0:00:19]} 44. Bb5 {[%emt 0:00:25]} Re7 {[%emt 0:00:48]} 45. Bxd6 {[%emt 0:00:26]} Rf7 {[%emt 0:00:30]} 1-0